[Event "*** Titled Tuesday Blitz"]
[Site "Chess.com"]
[Date "2021.04.20"]
[Round "11"]
[White "Irishchessman16"]
[Black "McCarthyStone"]
[Result "1-0"]
[WhiteElo "2294"]
[BlackElo "2364"]
[TimeControl "180+1"]
[EndTime "12:05:12 PDT"]
[Termination "Irishchessman16 won by resignation"]

1. e4 {[%clk 0:02:59.3]} 1... g6 {[%clk 0:02:55.3]} 2. h4 {[%clk 0:02:58]} 2...
d5 {[%clk 0:02:51.7]} 3. e5 {[%clk 0:02:56.4]} 3... Nc6 {[%clk 0:02:46.8]} 4. d4
{[%clk 0:02:54.8]} 4... h5 {[%clk 0:02:47.2]} 5. Bg5 {[%clk 0:02:48]} 5... Bh6
{[%clk 0:02:47.2]} 6. Qd2 {[%clk 0:02:46.9]} 6... Bxg5 {[%clk 0:02:45.1]} 7.
hxg5 {[%clk 0:02:47.8]} 7... a5 {[%clk 0:02:37.2]} 8. Nc3 {[%clk 0:02:43.2]}
8... Bf5 {[%clk 0:02:35.5]} 9. Bb5 {[%clk 0:02:42.3]} 9... Kf8 {[%clk 0:02:23]}
10. Bxc6 {[%clk 0:02:40.3]} 10... bxc6 {[%clk 0:02:22.9]} 11. Rh4 {[%clk
0:02:27.5]} 11... Qb8 {[%clk 0:02:16.7]} 12. Na4 {[%clk 0:02:19.2]} 12... Qb4
{[%clk 0:02:13.4]} 13. b3 {[%clk 0:02:10.4]} 13... Bxc2 {[%clk 0:02:01]} 14.
Qxb4 {[%clk 0:02:09]} 14... axb4 {[%clk 0:02:01.9]} 15. Rc1 {[%clk 0:02:09.1]}
15... Rxa4 {[%clk 0:01:48.7]} 16. bxa4 {[%clk 0:02:04.1]} 16... Bxa4 {[%clk
0:01:49.6]} 17. e6 {[%clk 0:02:04.3]} 17... fxe6 {[%clk 0:01:39.2]} 18. Nf3
{[%clk 0:02:03.3]} 18... e5 {[%clk 0:01:30.5]} 19. Nxe5 {[%clk 0:02:03]} 19...
Kg7 {[%clk 0:01:31.1]} 20. Rf4 {[%clk 0:02:02]} 20... Nf6 {[%clk 0:01:28.2]} 21.
gxf6+ {[%clk 0:02:00.1]} 21... exf6 {[%clk 0:01:29.1]} 22. Nxc6 {[%clk 0:02:00]}
22... Re8+ {[%clk 0:01:26.6]} 23. Kd2 {[%clk 0:02:00.6]} 23... Ra8 {[%clk
0:01:27.5]} 24. Nxb4 {[%clk 0:02:00]} 24... g5 {[%clk 0:01:25.8]} 25. Rxc7+
{[%clk 0:01:57.4]} 25... Kg6 {[%clk 0:01:26.2]} 26. Rf3 {[%clk 0:01:57.8]} 26...
Bb5 {[%clk 0:01:21.7]} 27. Re3 {[%clk 0:01:52.7]} 27... Bc4 {[%clk 0:01:21.7]}
28. Ree7 {[%clk 0:01:50.3]} 28... h4 {[%clk 0:01:19]} 29. Rg7+ {[%clk
0:01:47.8]} 29... Kf5 {[%clk 0:01:18.6]} 30. f3 {[%clk 0:01:43.1]} 30... Ra4
{[%clk 0:01:17.2]} 31. Rb7 {[%clk 0:01:42.7]} 31... Ra3 {[%clk 0:01:14.3]} 32.
Rb6 {[%clk 0:01:31.4]} 32... h3 {[%clk 0:01:00.3]} 33. gxh3 {[%clk 0:01:30.8]}
33... Rxf3 {[%clk 0:00:59.8]} 34. a4 {[%clk 0:01:29.4]} 34... Rxh3 {[%clk
0:00:58.7]} 35. Rf7 {[%clk 0:01:28.4]} 35... Rh2+ {[%clk 0:00:55]} 36. Kc3
{[%clk 0:01:27.1]} 36... Rh3+ {[%clk 0:00:55.2]} 37. Kb2 {[%clk 0:01:26.3]}
37... Rh2+ {[%clk 0:00:53.9]} 38. Kc1 {[%clk 0:01:25.1]} 38... Rh1+ {[%clk
0:00:53.3]} 39. Kb2 {[%clk 0:01:25.4]} 39... Rh2+ {[%clk 0:00:53.6]} 40. Nc2
{[%clk 0:01:26]} 40... Bd3 {[%clk 0:00:48]} 41. Rbxf6+ {[%clk 0:01:26.4]} 41...
Ke4 {[%clk 0:00:46.3]} 42. Rc6 {[%clk 0:01:27]} 42... Rh3 {[%clk 0:00:46.3]} 43.
Re7+ {[%clk 0:01:25.2]} 43... Kf5 {[%clk 0:00:45.1]} 44. Ne3+ {[%clk 0:01:23.3]}
44... Kf4 {[%clk 0:00:40.8]} 45. Nxd5+ {[%clk 0:01:24.2]} 45... Kf5 {[%clk
0:00:40.4]} 46. Rf6+ {[%clk 0:01:22.8]} 46... Kg4 {[%clk 0:00:40.2]} 47. Ne3+
{[%clk 0:01:22.5]} 47... Kg3 {[%clk 0:00:36.8]} 48. d5 {[%clk 0:01:22.6]} 48...
g4 {[%clk 0:00:26.5]} 49. d6 {[%clk 0:01:22.5]} 49... Bb5 {[%clk 0:00:20]} 50.
axb5 {[%clk 0:01:21.8]} 50... Rh7 {[%clk 0:00:20.9]} 51. Nf5+ {[%clk 0:01:17]}
51... Kf4 {[%clk 0:00:19.7]} 52. Rxh7 {[%clk 0:01:16.2]} 1-0

[Event "*** Titled Tuesday Blitz"]
[Site "Chess.com"]
[Date "2021.04.20"]
[Round "11"]
[White "Raud100"]
[Black "GelmanAlexander"]
[Result "0-1"]
[WhiteElo "2400"]
[BlackElo "2595"]
[TimeControl "180+1"]
[EndTime "12:05:17 PDT"]
[Termination "GelmanAlexander won by checkmate"]

1. d4 {[%clk 0:03:00.9]} 1... Nf6 {[%clk 0:02:59.3]} 2. c4 {[%clk 0:02:59.2]}
2... c5 {[%clk 0:02:59.5]} 3. d5 {[%clk 0:02:58.9]} 3... b5 {[%clk 0:02:59.6]}
4. f3 {[%clk 0:02:58.9]} 4... e6 {[%clk 0:02:43]} 5. e4 {[%clk 0:02:59.8]} 5...
bxc4 {[%clk 0:02:40.9]} 6. Nc3 {[%clk 0:02:55.7]} 6... exd5 {[%clk 0:02:38.2]}
7. e5 {[%clk 0:02:55.6]} 7... d4 {[%clk 0:02:30.1]} 8. exf6 {[%clk 0:02:55.2]}
8... d5 {[%clk 0:02:30.3]} 9. fxg7 {[%clk 0:02:22.8]} 9... Bxg7 {[%clk
0:02:29.4]} 10. Nce2 {[%clk 0:02:16.3]} 10... O-O {[%clk 0:02:24.4]} 11. Kf2
{[%clk 0:02:16]} 11... Re8 {[%clk 0:02:23.4]} 12. Nf4 {[%clk 0:02:10]} 12... Nc6
{[%clk 0:02:17.5]} 13. Nge2 {[%clk 0:02:04.1]} 13... d3 {[%clk 0:01:57.6]} 14.
Nxd3 {[%clk 0:01:56]} 14... cxd3 {[%clk 0:01:56.2]} 15. Qxd3 {[%clk 0:01:56.9]}
15... c4 {[%clk 0:01:52.1]} 16. Qd1 {[%clk 0:01:50.2]} 16... Qb6+ {[%clk
0:01:48]} 17. Kg3 {[%clk 0:01:49.2]} 17... d4 {[%clk 0:01:39.4]} 18. Nf4 {[%clk
0:01:45.4]} 18... d3 {[%clk 0:01:39.6]} 19. h4 {[%clk 0:01:37.5]} 19... Nd4
{[%clk 0:01:35.3]} 20. h5 {[%clk 0:01:33.9]} 20... Be5 {[%clk 0:01:18.8]} 21. h6
{[%clk 0:01:21]} 21... Kh8 {[%clk 0:01:15.4]} 22. Rh5 {[%clk 0:01:17.5]} 22...
Qg6+ {[%clk 0:01:02.1]} 23. Kf2 {[%clk 0:01:11.4]} 23... Bxf4 {[%clk 0:00:59.8]}
24. Bxf4 {[%clk 0:01:09.2]} 24... Qxh5 {[%clk 0:01:00.2]} 25. b3 {[%clk
0:01:05.9]} 25... Ne2 {[%clk 0:00:40.4]} 26. Qd2 {[%clk 0:00:46.6]} 26... Qh4+
{[%clk 0:00:32.3]} 27. g3 {[%clk 0:00:45.5]} 27... Qh2+ {[%clk 0:00:21.2]} 28.
Bg2 {[%clk 0:00:45.3]} 28... Bh3 {[%clk 0:00:20.5]} 29. Rf1 {[%clk 0:00:17.4]}
29... Qxg2+ {[%clk 0:00:18.7]} 30. Ke1 {[%clk 0:00:18.3]} 30... Qxf1# {[%clk
0:00:19.1]} 0-1

[Event "*** Titled Tuesday Blitz"]
[Site "Chess.com"]
[Date "2021.04.20"]
[Round "11"]
[White "Sychev_Klementy"]
[Black "NTBT_DHS"]
[Result "0-1"]
[WhiteElo "2880"]
[BlackElo "2738"]
[TimeControl "180+1"]
[EndTime "12:05:19 PDT"]
[Termination "NTBT_DHS won by checkmate"]

1. e4 {[%clk 0:03:00.9]} 1... g6 {[%clk 0:03:00.3]} 2. h4 {[%clk 0:02:58.5]}
2... Bg7 {[%clk 0:03:01.2]} 3. h5 {[%clk 0:02:58.8]} 3... d5 {[%clk 0:03:01.6]}
4. exd5 {[%clk 0:02:58.7]} 4... Qxd5 {[%clk 0:03:02.5]} 5. Nc3 {[%clk
0:02:59.3]} 5... Qe5+ {[%clk 0:03:02.5]} 6. Nge2 {[%clk 0:02:55.6]} 6... c5
{[%clk 0:03:00.1]} 7. d3 {[%clk 0:02:54.3]} 7... Nc6 {[%clk 0:02:58.4]} 8. Bf4
{[%clk 0:02:53.8]} 8... Qf5 {[%clk 0:02:54.6]} 9. h6 {[%clk 0:02:47.5]} 9...
Bxc3+ {[%clk 0:02:52.9]} 10. bxc3 {[%clk 0:02:46.3]} 10... Nf6 {[%clk
0:02:53.5]} 11. Qd2 {[%clk 0:02:39.1]} 11... O-O {[%clk 0:02:53.2]} 12. f3
{[%clk 0:02:28.9]} 12... e5 {[%clk 0:02:52.5]} 13. g4 {[%clk 0:02:22.8]} 13...
Qe6 {[%clk 0:02:49.8]} 14. Bg5 {[%clk 0:02:22.8]} 14... Nd5 {[%clk 0:02:49.5]}
15. c4 {[%clk 0:02:22.5]} 15... Nd4 {[%clk 0:02:19.7]} 16. Bg2 {[%clk
0:01:52.4]} 16... Nf4 {[%clk 0:02:09.1]} 17. Nxf4 {[%clk 0:01:45.1]} 17... exf4+
{[%clk 0:02:08.9]} 18. Kd1 {[%clk 0:01:44]} 18... Bd7 {[%clk 0:02:04.6]} 19. Re1
{[%clk 0:01:38.1]} 19... Qa6 {[%clk 0:01:58.6]} 20. Be7 {[%clk 0:01:08.2]} 20...
Ba4 {[%clk 0:01:55.4]} 21. Rc1 {[%clk 0:01:02.3]} 21... Rfe8 {[%clk 0:01:39.6]}
22. Qxf4 {[%clk 0:00:59.4]} 22... Nxc2 {[%clk 0:01:34]} 23. Rxc2 {[%clk
0:00:57.2]} 23... Bxc2+ {[%clk 0:01:34.2]} 24. Kxc2 {[%clk 0:00:57.9]} 24...
Qxa2+ {[%clk 0:01:34.6]} 25. Kc3 {[%clk 0:00:40.4]} 25... Qa5+ {[%clk
0:01:12.5]} 26. Kc2 {[%clk 0:00:39.7]} 26... Qxe1 {[%clk 0:01:07.1]} 27. Qf6
{[%clk 0:00:37.2]} 27... Qf2+ {[%clk 0:01:07]} 28. Kb3 {[%clk 0:00:22.6]} 28...
Qd4 {[%clk 0:01:06.6]} 29. g5 {[%clk 0:00:20.6]} 29... Qxd3+ {[%clk 0:01:04.5]}
30. Kb2 {[%clk 0:00:19.6]} 30... Qd4+ {[%clk 0:01:04.6]} 31. Kb3 {[%clk
0:00:19.5]} 31... Rxe7 {[%clk 0:00:48.3]} 32. Qxe7 {[%clk 0:00:18.1]} 32... Qd1+
{[%clk 0:00:45.6]} 33. Ka3 {[%clk 0:00:16.6]} 33... Qc1+ {[%clk 0:00:44.3]} 34.
Kb3 {[%clk 0:00:16.1]} 34... Qd1+ {[%clk 0:00:42.6]} 35. Ka3 {[%clk 0:00:15]}
35... Rd8 {[%clk 0:00:42.3]} 36. Qe5 {[%clk 0:00:14.1]} 36... Rd3+ {[%clk
0:00:41.9]} 37. Ka2 {[%clk 0:00:12.3]} 37... Qb3+ {[%clk 0:00:41.4]} 38. Ka1
{[%clk 0:00:12.5]} 38... Rd1# {[%clk 0:00:42.3]} 0-1

[Event "*** Titled Tuesday Blitz"]
[Site "Chess.com"]
[Date "2021.04.20"]
[Round "11"]
[White "rasmussvane"]
[Black "Hikaru"]
[Result "1/2-1/2"]
[WhiteElo "2913"]
[BlackElo "3170"]
[TimeControl "180+1"]
[EndTime "12:05:23 PDT"]
[Termination "Game drawn by repetition"]

1. Nf3 {[%clk 0:03:00.9]} 1... d5 {[%clk 0:02:58.7]} 2. g3 {[%clk 0:03:01.2]}
2... g6 {[%clk 0:02:58.6]} 3. Bg2 {[%clk 0:03:01.1]} 3... Bg7 {[%clk 0:02:59.1]}
4. d4 {[%clk 0:03:01.8]} 4... Nd7 {[%clk 0:02:58.5]} 5. O-O {[%clk 0:03:02.2]}
5... Ngf6 {[%clk 0:02:58.6]} 6. a4 {[%clk 0:03:02.9]} 6... O-O {[%clk
0:02:55.4]} 7. c4 {[%clk 0:03:01.4]} 7... dxc4 {[%clk 0:02:55.3]} 8. Na3 {[%clk
0:03:00.6]} 8... c6 {[%clk 0:02:51.7]} 9. Nxc4 {[%clk 0:03:00.5]} 9... Nb6
{[%clk 0:02:52.2]} 10. b3 {[%clk 0:02:57.4]} 10... Be6 {[%clk 0:02:47.3]} 11.
Qc2 {[%clk 0:02:57.6]} 11... Bf5 {[%clk 0:02:46.2]} 12. Qa2 {[%clk 0:02:57.2]}
12... Be4 {[%clk 0:02:45.1]} 13. Rd1 {[%clk 0:02:47.2]} 13... Nbd5 {[%clk
0:02:39.1]} 14. Bd2 {[%clk 0:02:42.5]} 14... a5 {[%clk 0:02:34.9]} 15. Rac1
{[%clk 0:02:40.5]} 15... Nb4 {[%clk 0:02:30.8]} 16. Qb2 {[%clk 0:02:31.3]} 16...
Nfd5 {[%clk 0:02:27.8]} 17. Nfe5 {[%clk 0:02:21]} 17... Bxg2 {[%clk 0:02:27.5]}
18. Kxg2 {[%clk 0:02:21.9]} 18... Nc7 {[%clk 0:02:05.3]} 19. Bxb4 {[%clk
0:02:13.7]} 19... axb4 {[%clk 0:02:04.4]} 20. e4 {[%clk 0:02:11.3]} 20... Ra6
{[%clk 0:01:54.1]} 21. Qd2 {[%clk 0:02:06.9]} 21... b5 {[%clk 0:01:49.3]} 22.
axb5 {[%clk 0:01:59.7]} 22... cxb5 {[%clk 0:01:31.2]} 23. Ne3 {[%clk 0:01:59.5]}
23... Qd6 {[%clk 0:01:30.9]} 24. Nf3 {[%clk 0:01:50.3]} 24... Rd8 {[%clk
0:01:19.7]} 25. e5 {[%clk 0:01:49.7]} 25... Qd7 {[%clk 0:01:19.2]} 26. Qxb4
{[%clk 0:01:47.6]} 26... e6 {[%clk 0:01:17.9]} 27. Qd2 {[%clk 0:01:32.1]} 27...
Nd5 {[%clk 0:01:16.2]} 28. Nxd5 {[%clk 0:01:22.6]} 28... Qxd5 {[%clk 0:01:17.1]}
29. Rc7 {[%clk 0:01:22.5]} 29... Qxb3 {[%clk 0:00:58.7]} 30. Qf4 {[%clk
0:01:22]} 30... Rf8 {[%clk 0:00:58.4]} 31. Rdc1 {[%clk 0:01:17.6]} 31... h6
{[%clk 0:00:57.4]} 32. Rd7 {[%clk 0:01:10.6]} 32... Qd3 {[%clk 0:00:45.3]} 33.
Rcc7 {[%clk 0:01:04.6]} 33... g5 {[%clk 0:00:39.6]} 34. Qd2 {[%clk 0:00:56.8]}
34... Qe4 {[%clk 0:00:35.3]} 35. Qe3 {[%clk 0:00:57.1]} 35... Qxe3 {[%clk
0:00:31.6]} 36. fxe3 {[%clk 0:00:58]} 36... g4 {[%clk 0:00:31.2]} 37. Nh4 {[%clk
0:00:53.9]} 37... Ra2+ {[%clk 0:00:30.9]} 38. Kg1 {[%clk 0:00:53.2]} 38... b4
{[%clk 0:00:27.6]} 39. Ng6 {[%clk 0:00:35.8]} 39... Ra1+ {[%clk 0:00:27.4]} 40.
Kg2 {[%clk 0:00:36.1]} 40... Ra2+ {[%clk 0:00:27.4]} 41. Kg1 {[%clk 0:00:36.2]}
41... Ra1+ {[%clk 0:00:22.4]} 42. Kg2 {[%clk 0:00:36.5]} 42... Ra2+ {[%clk
0:00:17.4]} 43. Kg1 {[%clk 0:00:36.8]} 1/2-1/2

[Event "*** Titled Tuesday Blitz"]
[Site "Chess.com"]
[Date "2021.04.20"]
[Round "11"]
[White "Iball95"]
[Black "IANOV0007"]
[Result "1-0"]
[WhiteElo "2618"]
[BlackElo "2475"]
[TimeControl "180+1"]
[EndTime "12:05:24 PDT"]
[Termination "Iball95 won on time"]

1. e4 {[%clk 0:03:00.9]} 1... d6 {[%clk 0:02:59.4]} 2. d4 {[%clk 0:03:00.6]}
2... Nf6 {[%clk 0:02:59.2]} 3. Nc3 {[%clk 0:03:00.6]} 3... c6 {[%clk 0:02:58.9]}
4. Nf3 {[%clk 0:02:56.3]} 4... Bg4 {[%clk 0:02:57.5]} 5. h3 {[%clk 0:02:55.1]}
5... Bh5 {[%clk 0:02:56.9]} 6. g4 {[%clk 0:02:54.3]} 6... Bg6 {[%clk 0:02:55.9]}
7. Qe2 {[%clk 0:02:54.7]} 7... e6 {[%clk 0:02:55.8]} 8. Bf4 {[%clk 0:02:51.4]}
8... Be7 {[%clk 0:02:53.5]} 9. O-O-O {[%clk 0:02:47.3]} 9... Na6 {[%clk
0:02:46.4]} 10. g5 {[%clk 0:02:39.3]} 10... Nd7 {[%clk 0:02:40.5]} 11. h4 {[%clk
0:02:37.6]} 11... Bh5 {[%clk 0:02:39.1]} 12. Bg2 {[%clk 0:02:37.5]} 12... d5
{[%clk 0:02:35.8]} 13. Kb1 {[%clk 0:02:36.5]} 13... Qa5 {[%clk 0:02:30.4]} 14.
Rhe1 {[%clk 0:02:32.6]} 14... O-O-O {[%clk 0:02:21.1]} 15. Rc1 {[%clk
0:02:24.7]} 15... Nc7 {[%clk 0:02:04.8]} 16. Qd2 {[%clk 0:02:14.6]} 16... Bb4
{[%clk 0:01:58.6]} 17. a3 {[%clk 0:02:05.6]} 17... Bxc3 {[%clk 0:01:57.4]} 18.
Qxc3 {[%clk 0:02:06.5]} 18... Qxc3 {[%clk 0:01:56.6]} 19. bxc3 {[%clk
0:02:07.4]} 19... dxe4 {[%clk 0:01:43.7]} 20. Rxe4 {[%clk 0:02:08.3]} 20... Nd5
{[%clk 0:01:43.1]} 21. Bd2 {[%clk 0:02:07.5]} 21... Bxf3 {[%clk 0:01:40]} 22.
Bxf3 {[%clk 0:02:08.4]} 22... N7b6 {[%clk 0:01:39.6]} 23. Ka2 {[%clk 0:01:45.6]}
23... a5 {[%clk 0:01:36.8]} 24. Be2 {[%clk 0:01:41.2]} 24... Na4 {[%clk
0:01:06.7]} 25. Kb3 {[%clk 0:01:39.1]} 25... b5 {[%clk 0:01:04.9]} 26. c4 {[%clk
0:01:38.9]} 26... Ndb6 {[%clk 0:00:35]} 27. cxb5 {[%clk 0:01:36.3]} 27... c5
{[%clk 0:00:29.6]} 28. Bxa5 {[%clk 0:01:21]} 28... Rxd4 {[%clk 0:00:22.7]} 29.
Rxd4 {[%clk 0:01:18.8]} 29... cxd4 {[%clk 0:00:21.7]} 30. Bf3 {[%clk 0:01:09.7]}
30... Kc7 {[%clk 0:00:13.6]} 31. Kb4 {[%clk 0:00:59.4]} 31... Rd8 {[%clk
0:00:09.8]} 32. Bxb6+ {[%clk 0:00:55.2]} 32... Nxb6 {[%clk 0:00:08.4]} 33. a4
{[%clk 0:00:56.1]} 33... Nd5+ {[%clk 0:00:02.1]} 34. Bxd5 {[%clk 0:00:55.8]}
34... Rxd5 {[%clk 0:00:01.9]} 35. Rd1 {[%clk 0:00:46]} 1-0

[Event "*** Titled Tuesday Blitz"]
[Site "Chess.com"]
[Date "2021.04.20"]
[Round "11"]
[White "sorrm8thatscheckm8"]
[Black "WPWPWP-2015"]
[Result "1-0"]
[WhiteElo "2580"]
[BlackElo "2457"]
[TimeControl "180+1"]
[EndTime "12:05:24 PDT"]
[Termination "sorrm8thatscheckm8 won on time"]

1. d4 {[%clk 0:03:00.3]} 1... d5 {[%clk 0:02:57.4]} 2. c4 {[%clk 0:02:57.9]}
2... dxc4 {[%clk 0:02:58.3]} 3. e4 {[%clk 0:02:56.7]} 3... e5 {[%clk 0:02:56]}
4. Nf3 {[%clk 0:02:53.8]} 4... exd4 {[%clk 0:02:53.7]} 5. Bxc4 {[%clk 0:02:49]}
5... Bb4+ {[%clk 0:02:52.5]} 6. Bd2 {[%clk 0:02:48.2]} 6... Bxd2+ {[%clk
0:02:51.9]} 7. Nbxd2 {[%clk 0:02:46.9]} 7... Nc6 {[%clk 0:02:52.8]} 8. Qb3
{[%clk 0:02:42.3]} 8... Qe7 {[%clk 0:02:50.3]} 9. O-O {[%clk 0:02:40.3]} 9...
Nf6 {[%clk 0:02:42.4]} 10. e5 {[%clk 0:02:29.5]} 10... Nd7 {[%clk 0:02:39]} 11.
Bxf7+ {[%clk 0:02:24.9]} 11... Qxf7 {[%clk 0:02:35.6]} 12. e6 {[%clk 0:02:24.9]}
12... Qf5 {[%clk 0:02:21.1]} 13. exd7+ {[%clk 0:02:23.5]} 13... Bxd7 {[%clk
0:02:19.9]} 14. Rfe1+ {[%clk 0:02:24.4]} 14... Kd8 {[%clk 0:02:15.6]} 15. Ne4
{[%clk 0:02:21.3]} 15... b6 {[%clk 0:02:10.5]} 16. Rad1 {[%clk 0:02:19.1]} 16...
Kc8 {[%clk 0:02:09]} 17. Nxd4 {[%clk 0:02:16.6]} 17... Nxd4 {[%clk 0:02:08.2]}
18. Rxd4 {[%clk 0:02:17.5]} 18... Bc6 {[%clk 0:02:03.8]} 19. Rc4 {[%clk
0:02:12.9]} 19... Qg6 {[%clk 0:01:59.2]} 20. Qc3 {[%clk 0:02:10.2]} 20... Bxe4
{[%clk 0:01:48.2]} 21. Rexe4 {[%clk 0:01:56.8]} 21... Qf7 {[%clk 0:01:37.2]} 22.
Rf4 {[%clk 0:01:53.4]} 22... Qd7 {[%clk 0:01:33.5]} 23. h4 {[%clk 0:01:46]}
23... Rd8 {[%clk 0:01:13.5]} 24. Rfd4 {[%clk 0:01:42.3]} 24... Qe7 {[%clk
0:01:12.6]} 25. Rxd8+ {[%clk 0:01:37]} 25... Kxd8 {[%clk 0:01:12.5]} 26. Qd3+
{[%clk 0:01:31]} 26... Kc8 {[%clk 0:01:04.3]} 27. Qd5 {[%clk 0:01:29.2]} 27...
Rb8 {[%clk 0:00:46.3]} 28. Qc6 {[%clk 0:01:20.6]} 28... Qd7 {[%clk 0:00:43.4]}
29. Qf3 {[%clk 0:01:15.7]} 29... c5 {[%clk 0:00:11.8]} 30. Rf4 {[%clk
0:01:14.1]} 30... Qd6 {[%clk 0:00:12]} 31. Rf8+ {[%clk 0:01:10]} 31... Kc7
{[%clk 0:00:12.1]} 32. Rf7+ {[%clk 0:01:05.3]} 32... Kd8 {[%clk 0:00:08]} 33.
Rxa7 {[%clk 0:01:00.2]} 33... Rc8 {[%clk 0:00:04.7]} 34. Rxg7 {[%clk 0:00:56.6]}
34... Rc7 {[%clk 0:00:03.2]} 35. Rg8+ {[%clk 0:00:54]} 35... Kd7 {[%clk
0:00:02.9]} 36. Qf5+ {[%clk 0:00:52.7]} 36... Kc6 {[%clk 0:00:02.2]} 37. Qe4+
{[%clk 0:00:52.3]} 37... Kb5 {[%clk 0:00:02]} 38. a4+ {[%clk 0:00:50.8]} 1-0

[Event "*** Titled Tuesday Blitz"]
[Site "Chess.com"]
[Date "2021.04.20"]
[Round "11"]
[White "Komiagina_Maria"]
[Black "JiiHart"]
[Result "1-0"]
[WhiteElo "2204"]
[BlackElo "2009"]
[TimeControl "180+1"]
[EndTime "12:05:24 PDT"]
[Termination "Komiagina_Maria won on time"]

1. e4 {[%clk 0:03:00.9]} 1... c5 {[%clk 0:02:59.9]} 2. Nf3 {[%clk 0:03:00.5]}
2... Nc6 {[%clk 0:03:00.4]} 3. Bb5 {[%clk 0:02:59.6]} 3... g6 {[%clk 0:03:00.2]}
4. Bxc6 {[%clk 0:02:59.2]} 4... dxc6 {[%clk 0:03:00.1]} 5. d3 {[%clk 0:02:59]}
5... Bg4 {[%clk 0:02:59.7]} 6. Nc3 {[%clk 0:02:56.6]} 6... Bg7 {[%clk
0:02:58.3]} 7. h3 {[%clk 0:02:56]} 7... Bxf3 {[%clk 0:02:57.8]} 8. Qxf3 {[%clk
0:02:55.5]} 8... e5 {[%clk 0:02:57.9]} 9. Be3 {[%clk 0:02:53.8]} 9... b6 {[%clk
0:02:58.1]} 10. g4 {[%clk 0:02:49.5]} 10... h6 {[%clk 0:02:54.3]} 11. h4 {[%clk
0:02:47.9]} 11... Ne7 {[%clk 0:02:46.7]} 12. O-O-O {[%clk 0:02:45.1]} 12... Qd6
{[%clk 0:02:43.4]} 13. Kb1 {[%clk 0:02:37.8]} 13... Rf8 {[%clk 0:02:38.6]} 14.
Qg3 {[%clk 0:02:32.8]} 14... O-O-O {[%clk 0:02:36]} 15. f4 {[%clk 0:02:32.3]}
15... Kb7 {[%clk 0:02:10.6]} 16. f5 {[%clk 0:02:30.3]} 16... Rg8 {[%clk
0:01:33.3]} 17. Qf3 {[%clk 0:02:24.3]} 17... gxf5 {[%clk 0:01:24.2]} 18. gxf5
{[%clk 0:02:19.3]} 18... a5 {[%clk 0:00:47.9]} 19. Ne2 {[%clk 0:02:05.6]} 19...
a4 {[%clk 0:00:46.7]} 20. a3 {[%clk 0:02:03.4]} 20... b5 {[%clk 0:00:45.5]} 21.
Qf2 {[%clk 0:01:57.7]} 21... Kb6 {[%clk 0:00:19.4]} 22. Rhf1 {[%clk 0:01:56.5]}
22... Bf6 {[%clk 0:00:17.4]} 23. Bxh6 {[%clk 0:01:53.6]} 23... Nc8 {[%clk
0:00:17.4]} 24. Be3 {[%clk 0:01:51]} 24... Be7 {[%clk 0:00:16.1]} 25. f6 {[%clk
0:01:47.9]} 25... Bf8 {[%clk 0:00:15.8]} 26. h5 {[%clk 0:01:47.9]} 26... Rh8
{[%clk 0:00:15.7]} 27. Qf5 {[%clk 0:01:40.6]} 27... Kb7 {[%clk 0:00:15.1]} 28.
Rh1 {[%clk 0:01:35.6]} 28... b4 {[%clk 0:00:15.3]} 29. Ka2 {[%clk 0:01:20.8]}
29... Na7 {[%clk 0:00:07.9]} 30. c4 {[%clk 0:01:13.3]} 30... bxa3 {[%clk
0:00:05.8]} 31. bxa3 {[%clk 0:01:12]} 31... Ka8 {[%clk 0:00:05.7]} 32. Nc3
{[%clk 0:00:58.2]} 32... Rb8 {[%clk 0:00:05.1]} 33. Qf2 {[%clk 0:00:52.8]} 33...
Rb3 {[%clk 0:00:03.5]} 34. Qc2 {[%clk 0:00:47.2]} 34... Bh6 {[%clk 0:00:01.2]}
35. Bxh6 {[%clk 0:00:43.9]} 1-0

[Event "*** Titled Tuesday Blitz"]
[Site "Chess.com"]
[Date "2021.04.20"]
[Round "11"]
[White "GM_LOADING"]
[Black "PowerThinking2650"]
[Result "1-0"]
[WhiteElo "2546"]
[BlackElo "2409"]
[TimeControl "180+1"]
[EndTime "12:05:28 PDT"]
[Termination "GM_LOADING won by resignation"]

1. e4 {[%clk 0:01:46.3]} 1... e5 {[%clk 0:02:57.6]} 2. Nf3 {[%clk 0:01:46.3]}
2... Nc6 {[%clk 0:02:57.6]} 3. Bc4 {[%clk 0:01:46.7]} 3... Nf6 {[%clk
0:02:57.1]} 4. d3 {[%clk 0:01:46.9]} 4... h6 {[%clk 0:02:56]} 5. O-O {[%clk
0:01:44.7]} 5... d6 {[%clk 0:02:55.8]} 6. a4 {[%clk 0:01:43.4]} 6... g6 {[%clk
0:02:55.5]} 7. d4 {[%clk 0:01:40.1]} 7... Qe7 {[%clk 0:02:54.3]} 8. Nc3 {[%clk
0:01:37.9]} 8... Bg4 {[%clk 0:02:50.9]} 9. h3 {[%clk 0:01:33.5]} 9... Bxf3
{[%clk 0:02:49.9]} 10. Qxf3 {[%clk 0:01:34.4]} 10... Nxd4 {[%clk 0:02:48.5]} 11.
Qd1 {[%clk 0:01:34.6]} 11... g5 {[%clk 0:02:40.4]} 12. Be3 {[%clk 0:01:27]}
12... Ne6 {[%clk 0:02:31.7]} 13. a5 {[%clk 0:01:20.6]} 13... c6 {[%clk
0:02:30.2]} 14. a6 {[%clk 0:01:19.7]} 14... b5 {[%clk 0:02:29.6]} 15. Nxb5
{[%clk 0:01:17.7]} 15... cxb5 {[%clk 0:02:26.2]} 16. Bxb5+ {[%clk 0:01:18.6]}
16... Kd8 {[%clk 0:02:20.6]} 17. Bc6 {[%clk 0:01:14.1]} 17... Rc8 {[%clk
0:01:54.7]} 18. Bb7 {[%clk 0:01:13]} 18... Nc5 {[%clk 0:01:18.6]} 19. Bxc8
{[%clk 0:01:11.3]} 19... Kxc8 {[%clk 0:01:19.5]} 20. b4 {[%clk 0:00:55.8]} 20...
Ne6 {[%clk 0:01:11.8]} 21. b5 {[%clk 0:00:53.9]} 21... Nc5 {[%clk 0:01:01.2]}
22. b6 {[%clk 0:00:49.3]} 22... Kb8 {[%clk 0:01:01.2]} 23. bxa7+ {[%clk
0:00:39.6]} 23... Ka8 {[%clk 0:00:58.6]} 24. Qb1 {[%clk 0:00:33.7]} 24... Qxa7
{[%clk 0:00:50.1]} 25. Qb5 {[%clk 0:00:31.5]} 25... Qd7 {[%clk 0:00:47.7]} 26.
Qb6 {[%clk 0:00:30.5]} 26... Be7 {[%clk 0:00:36.8]} 27. Rfb1 {[%clk 0:00:29.8]}
27... Nfxe4 {[%clk 0:00:25.2]} 28. Qb7+ {[%clk 0:00:21]} 28... Nxb7 {[%clk
0:00:21.7]} 29. axb7+ {[%clk 0:00:21.9]} 29... Kb8 {[%clk 0:00:22]} 30. Ra8+
{[%clk 0:00:21]} 30... Kc7 {[%clk 0:00:20.5]} 31. Rxh8 {[%clk 0:00:21.4]} 1-0